{"text_format":"1","workbook":"xlsx","n_sheets":3,"sheets":["Ark1","Ark2","Ark3"],"not_rendered":{"charts":0,"images":59,"macros":1,"external_links":0,"defined_names":4,"comments":0,"pivot_tables":0},"unopened":[],"bounds":{"document_bytes":16777216,"sheet_cells":100000,"rows_first":2000,"rows_last":500,"rows_between":2000,"halvings":0,"cell_chars":16384,"cell_head_chars":4096},"cells_cut":0,"cells_raw":0,"read":"whole","date_system":"1900"}

{"sheet":"Ark1","index":0,"n_rows":298,"n_cols":99,"rows_kept":298,"cut":false,"hidden":false,"merged":[[48,78,53,78],[45,0,45,5],[53,12,53,22]]}
["       Danske og mellemeuropæiske Cylinderfluer, Cylindromyia,  (Diptera: Tachinidae)"]
[null,null,null,null,null,null,null,"Bent Haagen Petersen"]
["I mellemeuropa  omfatter slægten Cylindromyia  cirka 10-12 arter. Fra Storbritanien og fra Danmark er kun kendt"]
["de tre arter C. braasicaria, auriceps og interrupta. I Sverige og Norge er også C. pusilla fundet. Det er velkendt,"]
["at varmere klima trækker fluearter op til Danmark sydfra. Det tager nøglen højde for, idet denne, foruden de tre"]
["danske, også kan nøgle syv sydlige arter, som er  beskrevet I Tschorsnig og Herrings \"Die Raupenfliegen Mittel-",null,null,null,null,null,null,null,null,null,null,null,null,null,null,null,null,null,null,null,null,null,null,null,null,null,null,null,null,null,null,null,null,null,null,null,null,null,null,null,null,null,null,null,null,null,null,null,null,null,null,null,null,null,null,null,null,null,null,null,null,null,null,null,null,null,null,1]
["europas\", 1994. I nøglens artsoversigt vises de tre danske arter med almindelig sort skrift, medens de syv ikke"]
["danske arter vises med rød skrift. I artsbeskrivelserne for de syv arter er kendetegn, som adskiller arterne fra de ",null,null,null,null,null,null,null,null,null,null,null,null,null,null,null,null,null,null,null,null,null,null,null,null,null,null,null,null,null,"Fig. 1 Eriothrix rufomaculatus",null,null,null,0]
["danske, ligeledes skrevet med rødt, så det, man skal hæfte sig ved, falder i øjnene. Nogle arter har på brystets",null,null,null,null,null,null,null,null,null,null,null,null,null,null,null,null,null,null,null,null,null,null,null,null,null,null,null,null,null,null,null,null,null,0]
["overside to  brede sorte striber, andre har to meget smalle sorte striber mellem de brede striber.  Brystets striber"]
["kan ikke betragtes som helt sikre kendetegn, men de er taget med i artsbeskrivelserne.",null,null,null,null,null,null,null,null,null,null,null,null,null,null,null,null,null,null,null,null,null,null,null,null,null,null,null,null,null,null,null,null,null,0]
[null,null,null,null,null,null,null,null,null,null,null,null,null,null,null,null,null,null,null,null,null,null,null,null,null,null,null,null,null,null,null,null,null,null,0]
["Tre andre snyltefluearter kan måske forveksles med Cylindromyia. Det er den røde snylteflue Eriothrix rufomacu-"]
["latus (Fig. 1), Mintho rufiventris (Fig. 2)  og ikke mindst Brullaea ocypteroidea (Fig 3). Alle tre arter kan ad-",null,null,null,null,null,null,null,null,null,null,null,null,null,null,null,null,null,null,null,null,null,null,null,null,null,null,null,null,null,null,null,null,null,0]
["skilles fra Cylindromyia ved ikke at have vingernes karakteristisk stilkede celle (R4+5), hvor stilken peger op mod",null,null,null,null,null,null,null,null,null,null,null,null,null,null,null,null,null,null,null,null,null,null,null,null,null,null,null,null,null,null,null,null,null,0]
["vingeforkanten (Fig. 4).",null,null,null,null,null,null,null,null,null,null,null,null,null,null,null,null,null,null,null,null,null,null,null,null,null,null,null,null,null,null,null,null,null,0]
[]
["Bestemmelse kan være meget vanskelig og forudsætter, især i brassicaria-gruppen, billeder af høj kvalitet. Et en-",null,null,null,null,null,null,null,null,null,null,null,null,null,null,null,null,null,null,null,null,null,null,null,null,null,null,null,null,null,null,null,null,null,0]
["kelt billede er sjældent nok til bestemmelse. Nøglens billeder af arter kunne være bedre.",null,null,null,null,null,null,null,null,null,null,null,null,null,null,null,null,null,null,null,null,null,null,null,null,null,null,null,null,null,"    Fig. 2 Mintho rufiventris",null,null,null,0]
[]
[null,null,null,null,null,null,null,null,null,null,null,null,null,null,null,null,null,null,null,null,null,null,null,null,null,null,null,null,null,null,null,null,null,null,0]
["Sådan bruger man bedst nøglen.",null,null,null,null,null,null,null,null,null,null,null,null,null,null,null,null,null,null,null,null,null,null,null,null,null,null,null,null,null,null,null,null,null,0]
["Nøglen er specielt konstrueret til brug ved bestemmelse af fluer på billeder. Den bruger samme kendetegn som"]
["almindelige nøgler. Blot har nøglen her den forskel, at man ikke behøver at gå frem i en given rækkefølge, som",null,null,null,null,null,null,null,null,null,null,null,null,null,null,null,null,null,null,null,null,null,null,null,null,null,null,null,null,null,null,null,null,null,0]
["man jo ellers skal.  Det er en fordel, da der på billeder ofte er kendetegn, der ikke kan ses, og da ville man med",null,null,null,null,null,null,null,null,null,null,null,null,null,null,null,null,null,null,null,null,null,null,null,null,null,null,null,null,null,null,null,null,null,0]
["en almindelig nøgle gå i stå. Det er altid bedst at starte med sådanne kendetegn, som ses meget tydeligt. ",null,null,null,null,null,null,null,null,null,null,null,null,null,null,null,null,null,null,null,null,null,null,null,null,null,null,null,null,null,null,null,null,null,0]
["Kendetegn, som ikke er synlige på billedet, springer man over, men der skal helst ikke være for mange af dem.",null,null,null,null,null,null,null,null,null,null,null,null,null,null,null,null,null,null,null,null,null,null,null,null,null,null,null,null,null,null,null,null,null,0]
["Hver gang, man har klikket ved et kendetegn, vises et billede af kendetegnet, og arter, som ikke har dette ken-"]
["detegn, forsvinder fra artsoversigten. Klikker man ved et kendetegn, som ikke passer med nøglens, skriver nøg-",null,null,null,null,null,null,null,null,null,null,null,null,null,null,null,null,null,null,null,null,null,null,null,null,null,null,null,null,null,null,null,null,null,0]
["len, at bestemmelse da næppe vil være mulig.",null,null,null,null,null,null,null,null,null,null,null,null,null,null,null,null,null,null,null,null,null,null,null,null,null,null,null,null,null,"   Fig. 3 Brullaea ocypteroidea",null,null,null,0]
[]
["Når der kun er 1 artsnavn tilbage på oversigten, skriver nøglen, at fluen nu er bestemt. Dens navn vises i feltet ",null,null,null,null,null,null,null,null,null,null,null,null,null,null,null,null,null,null,null,null,null,null,null,null,null,null,null,null,null,null,null,null,null,0]
["øverst på skemaet. Derefter bør man i oversigten klikke ved fluens navn, hvorefter et billede af arten og en be-",null,null,null,null,null,null,null,null,null,null,null,null,null,null,null,null,null,null,null,null,null,null,null,null,null,null,null,null,null,null,null,null,null,0]
["skrivelse vises. Det er vigtigt at læse denne. Hvis man har benyttet observationstidspunktt som nøglekarakter,"]
["bør man så slå den fra for at se, om andre arter med anden flyvetid også var muligheder. Nøglen gemmer også "]
["kendetegn for sådanne arter.",null,null,null,null,null,null,null,null,null,null,null,null,null,null,null,null,null,null,null,null,null,null,null,null,null,null,null,null,null,null,null,null,null,null,null,null,null,null,null,null,null,null,null,null,null,null,null,null,null,null,null,null,null,null,null,null,null,null,null,null,null,null,null,null,null,null,null,null,null,null,null,null,null,null,null,11]
[null,null,null,null,null,null,null,null,null,null,null,null,null,null,null,null,null,null,null,null,null,null,null,null,null,null,null,null,null,null,null,"Fig. 4. Vinge C. brassicaria, der ",null,null,null,null,{"$f":"SUM(BY36)","v":11}]
["Når man er sikker på sin bestemmelse, kan man indrapportere observationen. Er man ikke særlig øvet i at be-",null,null,null,null,null,null,null,null,null,null,null,null,null,null,null,null,null,null,null,null,null,null,null,null,null,null,null,null,null,null,"viser stilk og subcostalåre, som "]
["stemme fluer, bør man sikre sig ved først  at spørge i Tovinge-forum.",null,null,null,null,null,null,null,null,null,null,null,null,null,null,null,null,null,null,null,null,null,null,null,null,null,null,null,null,null,null,"er tættere på vingeforkant end"]
[null,null,null,null,null,null,null,null,null,null,null,null,null,null,null,null,null,null,null,null,null,null,null,null,null,null,null,null,null,null,null,"korte tværåre midt på vingen."]
[]
[]
[]
["Nøgle til danske og mellemeuropæiske Cylinderfluer, Cylindromyia, (Diptera: Tachinidae)"]
[null,null,null,null,null,null,null,null,null,null,null,null,null,null,null,null,null,null,null,null,null,null,null,null,null,null,null,null,null,null,null,null," "]
[null,null,null,null,null,null,null,null,null,null,null,null,null,null,null,null,null,null,null,null,null,null,null,null,null,null,null,null,null,null,null,null," "," "]
[null,null,null,null,null,null,null,null," ",null," ",null,null,null,null,"    "," ",null,null,null,null," "," "," "," "," "," "," "," "," "," "," ",null,null,null,null,null,null,null,null,null,null,null,null,null,null,"*","*",null,null,"*",null,"*",null,"*",null,"*",null,"*",null,"*",null,null,null,null,null,null,null,null,null,null,null,null,null,null,null,null,null,null,null,null,null,null,null,"tom"]
[null,null,null,null,null,null,null,null,null,null,null,null,null,null,null,{"$f":"IF(AL51=1,VLOOKUP(AL50,AG82:AH91,2,FALSE),\"   Cylindromyia sp.\")","v":"Cylindromyia pusilla"},null,null,null,null,null,null,null,null,null,null,null,null,null,null,null,null,null,null,null,null,null,{"$f":"SUM(AU48+AV48+AY48+BA48+BC48+BE48+BG48+BI48)","v":7},"Afkrydsede felter *",null,null,null,null,null,null,null,{"$f":"IF(J49=0,0,1)","v":0},{"$f":"IF(AX48=0,0,1)","v":1},null,{"$f":"+AV49+AW49+AX49","v":1},{"$f":"IF(AZ48=0,0,1)","v":1},{"$f":"+AY49+AZ49","v":1},{"$f":"IF(BB48=0,0,1)","v":1},{"$f":"+BA49+BB49","v":1},{"$f":"IF(BD48=0,0,1)","v":1},{"$f":"+BC49+BD49","v":1},{"$f":"IF(BF48=0,0,1)","v":1},{"$f":"+BE49+BF49","v":1},{"$f":"IF(BH48=0,0,1)","v":1},{"$f":"+BG49+BH49","v":1},{"$f":"IF(BJ48=0,0,1)","v":1},{"$f":"+BI49+BJ49","v":1},{"$f":"IF(BL48=0,0,1)","v":0},{"$f":"+BK49+BL49","v":0},null,{"$f":"IF(BO48=0,0,1)","v":0},{"$f":"+BN49+BO49","v":0},{"$f":"IF(BQ48=0,0,1)","v":0},{"$f":"+BP49+BQ49","v":0},{"$f":"IF(BS48=0,0,1)","v":0},{"$f":"+BR49+BS49","v":0},{"$f":"IF(BU48=0,0,1)","v":0},{"$f":"+BT49+BU49","v":0},{"$f":"IF(BW48=0,0,1)","v":0},{"$f":"+BV49+BW49","v":0},{"$f":"IF(BY48=0,0,1)","v":0},{"$f":"+BX49+BY49","v":0},null,0,{"$f":"SUM(CA48,-1)","v":-1},null,4,null,null,1]
[null,null,null,null,null,null,null,null,null,null," ",null,null,null,null,null,null,"  Cylinderflue",null,null,null,null,null,null,null,null,null,null,null,null,null,null,null,null,null,{"$f":"++++++++++++++++++++++++++++++++++++++++++++++++++++++++++++++AF74","v":"Cylindromyia pusilla"},null,null,null,null,null,null,null,null,null,null,{"$f":"IF(J49=0,0,1)","v":0},{"$f":"IF(AH50=\" \",0,1)","v":0},{"$f":"IF(AH51=\" \",0,1)","v":0},{"$f":"IF(AH52=\" \",0,1)","v":1},{"$f":"IF(AH53=\" \",0,1)","v":0},{"$f":"IF(AH54=\" \",0,1)","v":1},{"$f":"IF(AH55=\" \",0,1)","v":0},{"$f":"IF(AH56=\" \",0,1)","v":1},{"$f":"IF(AH57=\" \",0,1)","v":1},{"$f":"IF(AH58=\" \",0,1)","v":0},{"$f":"IF(AH59=\" \",0,1)","v":0},{"$f":"IF(AH60=\" \",0,1)","v":1},{"$f":"IF(AH61=\" \",0,1)","v":0},{"$f":"IF(AH62=\" \",0,1)","v":1},{"$f":"IF(AH63=\" \",0,1)","v":1},{"$f":"IF(AH64=\" \",0,1)","v":0},{"$f":"IF(AH65=\" \",0,1)","v":0},{"$f":"IF(AH66=\" \",0,1)","v":0},{"$f":"IF(AH67=\" \",0,1)","v":0},{"$f":"IF(AH68=\" \",0,1)","v":0},{"$f":"IF(AH69=\" \",0,1)","v":0},{"$f":"IF(AH70=\" \",0,1)","v":0},{"$f":"IF(AH71=\" \",0,1)","v":0},{"$f":"IF(AH72=\" \",0,1)","v":0},{"$f":"IF(AH73=\" \",0,1)","v":0},{"$f":"IF(AH74=\" \",0,1)","v":0},{"$f":"IF(AH75=\" \",0,1)","v":0},{"$f":"IF(AH76=\" \",0,1)","v":0},{"$f":"IF(AH77=\" \",0,1)","v":0},{"$f":"IF(AH78=\" \",0,1)","v":0},{"$f":"IF(AH79=\" \",0,1)","v":0},null,"bp6 kopieres til K6",{"$f":"IF(CB48<1,\" \",CB48)","v":" "},null,null,null,null,2]
["Scutellum m. 3 par kantbørster (basal, subapical og apical) ?",null,null,null,null,null,null,null,null,null," ",null,null,{"$f":"IF(AL48=0,\" \",IF((AL51>=2)*AND(AL48=AL50),AL51,\" \"))","v":" "},{"$f":"IF(AL48=0,\" \",IF((AL51>=2)*AND($AL$48=$AL$50),\"arter har de kendetegn, du har markeret.\",\" \"))","v":" "},null,null,null,null,null,null,null,null,null,null,null,null,null,null,null,null,null,null,{"$f":"IF(AI50,\"x\",\" \")","v":" "},false,null,null,{"$f":"MAX(AL52:AL61)","v":7},"Maks.",null,null,null,null,null,null,null,null,null,null,null,null,null,null,null,null,null,null,null,null,null,null,null,null,null,null,null,null,null,null,null,null,null,null,null,null,null,null," ",null,null,null,null,null,null,3]
["        -            2 par kantbørster (subapical og apical) ?",null,null,null,null,null,null,null,null,null," ",{"$f":"IF(AL51=1,\"Fluen er nu bestemt. Husk at læse artsbeskrivelsen\",\" \")","v":"Fluen er nu bestemt. Husk at læse artsbeskrivelsen"},null,null,null,null,null,null,null,null,null,null,null,null,null,null,null,null,null,null,null,null,null," ",false,null,null,{"$f":"COUNTIF(AL52:AL61,AL50)","v":1},"Ant. Maks",null,null,null,null,null,null,null,null,null,null,null,null,null,null,null,null,null,null,null,null,null,null,null,null,null,null,null,null,null,null,null,null,null,null,null,null,null,null,null,null,null,null,null,null,null,4]
["        -            1 par kantbørster (subapical) ?",null,null,null,null,null,null,null,null,null,null,null,{"$f":"IF(AL48>AL50,\"Afkrydsede kendetegn passer ikke med nøglen.\",\" \")","v":" "},null,null,null,null,null,null,null,null,null,null,null,null,null,null,null,null,null,null,null,null,"x",true,null,null,{"$f":"SUM(AU52:BJ52)","v":6},"Cylindromyia auriceps",null,null,null,null,null,null,null,null,null,{"$f":"IF($AH$51=\"x\",1,\" \")","v":" "},null,null,{"$f":"IF($AH$54=\"x\",1,\" \")","v":1},null,{"$f":"IF($AH$56=\"x\",1,\" \")","v":1},{"$f":"IF($AH$57=\"x\",1,\" \")","v":1},null,{"$f":"IF($AH$59=\"x\",1,\" \")","v":" "},{"$f":"IF($AH$60=\"x\",1,\" \")","v":1},null,{"$f":"IF($AH$62=\"x\",1,\" \")","v":1},{"$f":"IF($AH$63=\"x\",1,\" \")","v":1},null,null,null,{"$f":"IF($AH$67=\"x\",1,\" \")","v":" "},null,{"$f":"IF($AH$69=\"x\",1,\"  \")","v":"  "},null,{"$f":"IF($AH$71=\"x\",1,\" \")","v":" "},null,{"$f":"IF($AH$73=\"x\",1,\" \")","v":" "},null,{"$f":"IF($AH$75=\"x\",1,\" \")","v":" "},null,{"$f":"IF($AH$77=\"x\",1,\" \")","v":" "},{"$f":"IF($AH$78=\"x\",1,\" \")","v":" "},null,null,null,null,null,null,null,null,5]
["Bagkrop helt rød bortset fra sort plet eller stribe ved basis ?",null,null,null,null,null,null,null,null,null,null,null,{"$f":"IF(AL48>AL50,\"Det gør en bestemmelse tvivlsom.   Prøv igen ! \",\" \")","v":" "},null,null,null,null,null,null,null,null,null,null,null,null,null,null,null,null,null,null,null,null," ",false,null,null,{"$f":"SUM(AU53:BJ53)","v":4},"Cylindromyia brassicaria",null,null,null,null,null,null,null,null,{"$f":"IF($AH$50=\"x\",1,\" \")","v":" "},null,null,null,1,null,{"$f":"IF($AH$56=\"x\",1,\" \")","v":1},null,{"$f":"IF($AH$58=\"x\",1,\" \")","v":" "},null,1,null,{"$f":"IF($AH$62=\"x\",1,\" \")","v":1},null,{"$f":"IF($AH$64=\"x\",1,\" \")","v":" "},null,null," ",null,{"$f":"IF($AH$69=\"x\",1,\"  \")","v":"  "},null,{"$f":"IF($AH$71=\"x\",1,\" \")","v":" "},null," ",null," ",null," ",null,{"$f":"IF($AH$79=\"x\",1,\" \")","v":" "},null,null,null,null,null,null,null,6]
["     -        i hvert fald sort på 4.-5. led, måske med rygstribe ?",null,null,null,null,null,null,null,null,null,null,null,null,null,null,null,null,null,null,null,null,null,null,null,null,null,null,null,null,null,null,null,null,"x",true,null,null,6,"Cylindromyia interrupta",null,null,null,null,null,null,null,null,null,null,{"$f":"IF($AH$52=\"x\",1,\" \")","v":1},null,1,null,{"$f":"IF($AH$56=\"x\",1,\" \")","v":1},{"$f":"IF($AH$57=\"x\",1,\" \")","v":1},null," ",null,null,1,{"$f":"IF($AH$63=\"x\",1,\" \")","v":1},null,null,null," ",null,{"$f":"IF($AH$69=\"x\",1,\"  \")","v":"  "},null,{"$f":"IF($AH$71=\"x\",1,\" \")","v":" "},null," ",null," ",null," ",null," ",null,null,null,null,null,null,null,7]
["Pandestribe gul ?",null,null,null,null,null,null,null,null,null,null,null,null,null,null,null,null,null,null,null,null,null,null,null,null,null,null,null,null,null,null,null,null," ",false,null,null,7,"Cylindromyia pusilla",null,null,null,null,null,null,null,null,null,null,{"$f":"IF($AH$52=\"x\",1,\" \")","v":1},null,1,null,1,1,null,null,1,null,1,1,null,null,null," ",null,"  ",null," ",null," ",null," ",null," ",null," ",null,null,null,null,null,null,null,8]
["         -         sort eller mørkebrun ?",null,null,null,null,null,null,null,null,null,null,null,null,1,{"$f":"IF($AL52=$AL$50,$AM52,\" \")","v":" "},null,null,null,null,null,null,null,null,null,null,null,null,null,null,null,null,null," ","x",true,null,null,4,"Cylindromyia brevicornis",null,null,null,null,null,null,null,null,{"$f":"IF($AH$50=\"x\",1,\" \")","v":" "},null,null,null,{"$f":"IF($AH$54=\"x\",1,\" \")","v":1},null,{"$f":"IF($AH$56=\"x\",1,\" \")","v":1},null," ",null,1,null,{"$f":"IF($AH$62=\"x\",1,\" \")","v":1},null," ",null,null," ",null,"  ",{"$f":"IF($AH$70=\"x\",1,\" \")","v":" "}," ",{"$f":"IF($AH$72=\"x\",1,\"  \")","v":"  "}," ",{"$f":"IF($AH$74=\"x\",1,\" \")","v":" "},null,null," ",null," ",null,null,null,null,null,null,null,9]
["Subcostalåre bøjer op i vingeforkant lige over korte tværåre ?",null,null,null,null,null,null,null,null,null,null,null,null,2," ",null,null,null,null,null,null,null,null,null,null,null,null,null,null,null,null,null,null,"x",true,null,null,2,"Cylindromyia rufifrons",null,null,null,null,null,null,null,null," ",null,null,null,{"$f":"IF($AH$54=\"x\",1,\" \")","v":1},{"$f":"IF($AH$55=\"x\",1,\" \")","v":" "},null,null," ",null,1,{"$f":"IF($AH$61=\"x\",1,\" \")","v":" "},null,null," ",null,null," ",null,"  ",null,null,null,null,null,null,null,null,null,null,null,null,null,null,null,null,null,10]
["           -         bøjer op i vingeforkant tættere på vingespids ?",null,null,null,null,null,null,null,null,null,null,null,null,3," ",null,null,null,null,null,null,null,null,null,null,null,null,null,null,null,null,null,null," ",false,null,null,2,"Cylindromyia bicolor",null,null,null,null,null,null,null,null," ",null,null,{"$f":"IF($AH$53=\"x\",1,\" \")","v":" "},null,null,{"$f":"IF($AH$56=\"x\",1,\" \")","v":1},null," "," ",null,null,{"$f":"IF($AH$62=\"x\",1,\" \")","v":1},null," ",null,null,null,{"$f":"IF($AH$68=\"x\",1,\" \")","v":" "},null,null,null,null,null,null,null,null,null,null,null,null,null,null,null,null,null,null,11]
["Bagkrop med mediane discalbørster på 2. - 4. led?",null,null,null,null,null,null,null,null,null,null,null,null,4,"Cylindromyia pusilla",null,null,null,null,null,null,null,null,null,null,null,null,null,null,null,null,{"$f":"VLOOKUP(BY36,N82:O111,2)","v":"Bagkrop uden discalbørster på 2.-4.led"},null," ",false,null,null,3,"Cylindromyia xylotina",null,null,null,null,null,null,null,null," ",null,null,null,{"$f":"IF($AH$54=\"x\",1,\" \")","v":1},null,1,null," ",null,1," ",null,null," ",null,null," ",null,"  ",null,null,null,null,null,null,null,null,null,null,null,null,null,null,null,null,null,12]
["      -       uden mediane discalbørster ?",null,null,null,null,null,null,null,null,null,null,null,null,5," ",null,null,null,null,null,null,null,null,null,null,null,null,null,null,null,null,null,null,"x",true,null,null,4,"Cylindromyia pilipes",null,null,null,null,null,null,null,null," ",null,null,null,{"$f":"IF($AH$54=\"x\",1,\" \")","v":1},null,1,null," ",null,1,null,1,null," ",null,null," ",null,"  ",null,null,null,null,null,null,null,null,null,null,null,null,null,null,null,null,null,13]
["Følehornsled 3 langt, 3 måske 4 gange så langt som 2. led ?",null,null,null,null,null,null,null,null,null,null,null,null,6," ",null,null,null,null,null,null,null,null,null,null,null,null,null,null,null,null,null,null," ",false,null,null,5,"Cylindromyia intermedia",null,null,null,null,null,null,null,null,null,{"$f":"IF($AH$51=\"x\",1,\" \")","v":" "},null,null,{"$f":"IF($AH$54=\"x\",1,\" \")","v":1},null,1,{"$f":"IF($AH$57=\"x\",1,\" \")","v":1},null,null,1," ",null,{"$f":"IF($AH$63=\"x\",1,\" \")","v":1},null,null,null," ",null,"  ",null,null,null,null,null,null,null,null,null,null,null,null,null,null,null,null,null,14]
["            -          kort, kun 1,5 - 2 gange så langt som 2. led ?",null,null,null,null,null,null,null,null,null,null,null,null,7," ",null,null,null,null,null,null,null,null,null,null,null,null,null,null,null,null,null,null,"x",true,null,null,{"$f":"SUM(AU62:BY62)","v":0},".",null,null,null,null,null,null,null,null,null,null,null,null,null,null,null,null,null,null,null,null,null,null,null,null,null,null,null,null,null,null,null,null,null,null,null,null,null,null,null,null,null,null,null,null,null,15]
["Bagskinneben med 1 - 2 posteroventrale børster ? ",null,null,null,null,null,null,null,null,null,null,null,null,8," ",null,null,null,null,null,null,null,null,null,null,null,null,null,null,null,null,null,null,"x",true,null,null,0,".",null,null," ",null,null,null,null,null,null,null,null,null,null,null,null,null,null,null,null,null,null,null,null,null,null,null,null,null,null,null,null,null,null,null,null,null,null,null,null,null,null,null,null,null,null,16]
["          -           uden posteroventrale børster?",null,null,null,null,null,null,null,null,null,null,null,null,9," ",null,null,null,null,null,null,null,null,null,null,null,null,null,null,null,null,null,null," ",false,null,null,0,".",null,null,null,null,null,null,null,null,null,null,null,null,null,null,null,null,null,null,null,null,null,null,null,null,null,null,null,null,null,null,null,null,null,null,null,null,null,null,null,null,null,null,null,null,null,17]
[null,null,null,null,null,null,null,null,null,null,null,null,null,10," ",null,null,null,null,null,null,null,null,null,null,null,null,null,null,null,null,null,null," ",0,null,null,0,".",null,null,null,null,null,null,null,null,null,null,null,null,null,null,null,null,null,null,null,null,null,null,null,null,null,null,null,null,null,null,null,null,null,null,null,null,null,null,null,null,null,null,null,null,null,18]
["                                        Det kan være meget vanskeligt at under- ",null,null,null,null,null,null,null,null,null,null,null,null,null,null,null,null,null,null,null,null,null,null,null,null,null,null,null,null,null,null,null,null," ",0,null,null,0,".",null,null,null,null,null,null,null,null,null,null,null,null,null,null,null,null,null,null,null,null,null,null,null,null,null,null,null,null,null,null,null,null,null,null,null,null,null,null,null,null,null,null,null,null,null,19]
["                                ",null,null,"        søge børsterne på bagskinnebens ventrale",null,null,null,null,null,null,null,null,null,null,null,null,null,null,null,null,null,null,null,null,null,null,null,null,null,null,null,null,null," ",0,null,null,0,".",null,null,null,null,null,null,null,null,null,null,null,null,null,null,null,null,null,null,null,null,null,null,null,null,null,null,null,null,null,null,null,null,null,null,null,null,null,null,null,null,null,null,null,null,null,20]
[null,null,null,"        side. Heldigvis kan man i de fleste tilfæl-",null,null,null,null,null,null,null,null,null,null,null,null,null,null,null,null,null,null,null,null,null,null,null,null,null,null,null,null,null," ",0,null,null,0,".",null,null,null,null,null,null,null,null,null,null,null,null,null,null,null,null,null,null,null,null,null,null,null,null,null,null,null,null,null,null,null,null,null,null,null,null,null,null,null,null,null,null,null,null,null,21]
[null,null,null,"       de  klare sig uden.",null,null,null,null,null,null,null,null,null,null,null,null,null,null,null,null,null,null,null,null,null,null,null,null,null,null,null,null,null," ",0,null,null,0,".",null,null,null,null,null,null,null,null,null,null,null,null,null,null,null,null,null,null,null,null,null,null,null,null,null,null,null,null,null,null,null,null,null,null,null,null,null,null,null,null,null,null,null,null,null,22]
[null,null,null,null,null,null,null,null,null,null,null,null,null,null,null,null,null,null,null,null,null,null,null,null,null,null,null,null,null,null,null,null,null," ",0,null,null,0,".",null,null,null,null,null,null,null,null,null,null,null,null,null,null,null,null,null,null,null,null,null,null,null,null,null,null,null,null,null,null,null,null,null,null,null,null,null,null,null,null,null,null,null,null,null,23]
[null,null,null,"        På tegningen af et venstre bagskinneben ",null,null,null,null,null,null,null,null,null,null,null,null,null,null,null,null,null,null,null,null,null,null,null,null,null,null,null,null,null," ",0,null,null,0,".",null,null,null,null,null,null,null,null,null,null,null,null,null,null,null,null,null,null,null,null,null,null,null,null,null,null,null,null,null,null,null,null,null,null,null,null,null,null,null,null,null,null,null,null,null,24]
[null,null,null,"        ses de postrroventrale børster pv til høj-",null,null,null,null,null,null,null,null,null,null,null,null,null,null,null,null,null,null,null,null,null,null,null,null,null,null,null,null,null," ",0,null,null,0,"."]
[null,null,null,"        re. Børsterne til venstre er de anterodor-",null,null,null,null,null,null,null,null,null,null,null,null,null,null,null,null,null,null,null,null,null,null,null,null,null,null,null,null,null," ",0,null,null,0,"."]
[null,null,null,"        sale ad og de posterodorsale pd.",null,null,null,null,null,null,null,null,null,null,null,null,null,null,null,null,null,null,null,null,null,null,null,null,null,null,null,{"$f":"VLOOKUP(CD48,AB82:AC115,2)","v":"Cylindromyia pusilla"},null," ",0,null,null,0,"."]
[null,null,null,"        ",null,null,null,null,null,null,null,null,null,null,null,null,null,null,null,null,null,null,null,null,null,null,null,null,null,null,null,null,null," ",0,null,null,0,"."]
[null,null,null,"         De fire arter i auriceps-gruppen har 1 el-",null,null,null,null,null,null,null,null,null,null,null,null,null,null,null,null,null,null,null,null,null,null,null,null,null,null,null,null,null," ",0,null,null,0,"."]
[null,null,null,"         ler 2 pv-børster. De 6 arter i brassicaria-",null,null,null,null,null,null,null,null,null,null,null,null,null,null,null,null,null,null,null,null,null,null,null,null,null,null,null,"              Husk at læse indledningen",null," ",0,null,null,0,"."]
[null,null,null,"         gruppen har ikke pv-børster.",null,null,null,null,null,null,null,null,null,null,null,null,null,null,null,null,null,null,null,null,null,null,null,null,null,null,null,"                     oven over nøglen",null," ",0,null,null,0,"."]
[null,null,null,null,null,null,null,null,null,null,null,null,null,null,null,null,null,null,null,null,null,null,null,null,null,null,null,null,null,null,null,null,null," ",0,null,null,0,"."]
[null,null,null,null,null,null,null,null,null," ",null,null,null,null,null,null,null,null,null,null,null,null,null,null,null,null,null,null,null,null,null,null,null,null,null,null,null,0,"."]
[null,null,null,null,null,null,null,null,null,null,null,"Kendetegn",null,null,null,null,null,null,null,null,null,".",null,null,null,"Arter",null,null,null,null,null,null,null,null,null,null,null,0,"."]
[null,null,null,null,null,null,null,null,null,null,null,6,null,1,"3 par kantbørster på scutellum",null,null,null,null,null,null,null,null,null,null,21,null,1,"Cylindromyia auriceps",null,null,null,{"$f":"SUM(AU52:BJ52)","v":6},"Cylindromyia auriceps"]
[null,null,null,null,null,null,null,null,null,null,null,null,null,2,"2 par kantbørster på scutellum",null,null,null,null,null,null,null,null,null,null,null,null,2,"Cylindromyia brassicaria",null,null,null,{"$f":"SUM(AU53:BJ53)","v":4},"Cylindromyia brassicaria"]
[null,null,null,null,null,null,null,null,null,null,null,null,null,3,"1 par kantbørster på scutellum",null,null,null,null,null,null,null,null,null,null,null,null,3,"Cylindromyia interrupta",null,null,null,6,"Cylindromyia interrupta"]
[null,null,null,null,null,null,null,null,null,null,null,null,null,4,"Bagkrop rød til spidsen",null,null,null,null,null,null,null,null,null,null,null,null,4,"Cylindromyia pusilla",null,null,null,7,"Cylindromyia pusilla"]
[null,null,null,null,null,null,null,null,null,null,null,null,null,5,"Bagkropsspids sort",null,null,null,null,null,null,null,null,null,null,null,null,5,"Cylindromyia brevicornis",null,null,null,4,"Cylindromyia brevicornis",null,null,null,null,null,null,null,null,null,null,null,null,null,null,null,null,null,null,null,null,null,null,null,null,null,null,null,null,null,null,null,null,null,null,null,null,null,null,null,null,null,null,null," "]
[null,null,null,null,null,null,null,null,null,null,null,null,null,6,"Gul pandestribe ",null,null,null,null,null,null,null,null,null,null,null,null,6,"Cylindromyia rufifrons",null,null,null,2,"Cylindromyia rufifrons"]
[null,null,null,null,null,null,null,null,null,null,null,null,null,7,"Mørk pandestribe ",null,null,null,null,null,null,null,null,null,null,null,null,7,"Cylindromyia bicolor",null,null,null,2,"Cylindromyia bicolor"]
[null,null,null,null,null,null,null,null,null,null,null,null,null,8,"Subcostalåre og korte tværåre",null,null,null,null,null,null,null,null,null,null,null,null,8,"Cylindromyia xylotina",null,null,null,3,"Cylindromyia xylotina"]
[null,null,null,null,null,null,null,null,null,null,null,null,null,9,"Subcostalåre og korte tværåre",null,null,null,null,null,null,null,null,null,null,null,null,9,"Cylindromyia pilipes",null,null,null,4,"Cylindromyia pilipes"]
[null,null,null,null,null,null,null,null,null,null,null,null,null,10,"Bagkrop med discalbørster på 2.-4. led",null,null,null,null,null,null,null,null,null,null,null,null,10,"Cylindromyia intermedia",null,null,null,5,"Cylindromyia intermedia"]
[null,null,null,null,null,null,null,null,null,null,null,null,null,11,"Bagkrop uden discalbørster på 2.-4.led",null,null,null,null,null,null,null,null,null,null,null,null,null,null,null,null,null,null,null,null,null,null,null,null,null,null,null,null,null,null,null,null,null,null,null,null,null,null,null,null,null,null,null,null,null,null,null,null,null,null,null,null,null,null,null,null,null,null,null,{"$f":"SUM(AU52:CB52)","v":6},"    Mørk Klyngeflue"]
[null,null,null,null,null,null,null,null,null,null,null,null,null,12,"Følehornsled 3 langt",null,null,null,null,null,null,null,null,null,null,null,null,null,null,null,null,null,null,null,null,null,null,null,null,null,null,null,null,null,null,null,null,null,null,null,null,null,null,null,null,null,null,null,null,null,null,null,null,null,null,null,null,null,null,null,null,null,null,null,{"$f":"SUM(AU53:CF53)","v":4},"  Smalkindet Klyngeflue"]
[null,null,null,null,null,null,null,null,null,null,null,null,null,13,"Følehornsled 3 kort",null,null,null,null,null,null,null,null,null,null,null,null,null,null,null,null,null,null,null,null,null,null,null,null,null,null,null,null,null,null,null,null,null,null,null,null,null,null,null,null,null,null,null,null,null,null,null,null,null,null,null,null,null,null,null,null,null,null,null,{"$f":"SUM(AU54:CF54)","v":6},"        Dværg-Klyngeflue"]
[null,null,null,null,null,null,null,null,null,null,null,null,null,14,"Posteroventrale børster til højre",null,null,null,null,null,null,null,null,null,null,null,null,null,null,null,null,null,null,null,null,null,null,null,null,null,null,null,null,null,null,null,null,null,null,null,null,null,null,null,null,null,null,null,null,null,null,null,null,null,null,null,null,null,null,null,null,null,null,null,7,"  Ungarsk Klyngeflue"]
[null,null,null,null,null,null,null,null,null,null,null,null,null,15,"  Ingen posteroventrale børster",null,null,null,null,null,null,null,null,null,null,null,null,null,null,null,null,null,null,null,null,null,null,null,null,null,null,null,null,null,null,null,null,null,null,null,null,null,null,null,null,null,null,null,null,null,null,null,null,null,null,null,null,null,null,null,null,null,null,null,4,"Sortbaset  Klyngeflue"]
[null,null,null,null,null,null,null,null,null,null,null,null,null,null,null,null,null,null,null,null,null,null,null,null,null,null,null,null,null,null,null,null,null,null,null,null,null,null,null,null,null,null,null,null,null,null,null,null,null,null,null,null,null,null,null,null,null,null,null,null,null,null,null,null,null,null,null,null,null,null,null,null,null,null,2,"   Palpe-Klyngeflue"]
[null,null,null,null,null,null,null,null,null,null,null,null,null,null,null,null,null,null,null,null,null,null,null,null,null,null,null,null,null,null,null,null,null,null,null,null,null,null,null,null,null,null,null,null,null,null,null,null,null,null,null,null,null,null,null,null,null,null,null,null,null,null,null,null,null,null,null,null,null,null,null,null,null,null,2,"    Dusk-Klyngeflue"]
[null,null,null,null,null,null,null,null,null,null,null,null,null,null,null,null,null,null,null,null,null,null,null,null,null,null,null,null,null,null,null,null,null,null,null,null,null,null,null,null,null,null,null,null,null,null,null,null,null,null,null,null,null,null,null,null,null,null,null,null,null,null,null,null,null,null,null,null,null,null,null,null,null,null,3,"Almindelig Klyngeflue"]
[null,null,null,null,null,null,null,null,null,null,null,null,null,null,null,null,null,null,null,null,null,null,null,null,null,null,null,null,null,null,null,null,null,null,null,null,null,null,null,null,null,null,null,null,null,null,null,null,null,null,null,null,null,null,null,null,null,null,null,null,null,null,null,null,null,null,null,null,null,null,null,null,null,null,4," Trestribe Klyngeflue"]
[null,null,null,null,null,null,null,null,null,null,null,null,null,null,null,null,null,null,null,null,null,null,null,null,null,null,null,null,null,null,null,null,null,null,null,null,null,null,null,null,null,null,null,null,null,null,null,null,null,null,null,null,null,null,null,null,null,null,null,null,null,null,null,null,null,null,null,null,null,null,null,null,null,null,5,"."]
[null,null,null,null,null,null,null,null,null,null,null,null,null,null,null,null,null,null,null,null,null,null,null,null,null,null,null,null,null,null,null,null,null,null,null,null,null,null,null,null,null,null,null,null,null,null,null,null,null,null,null,null,null,null,null,null,null,null,null,null,null,null,null,null,null,null,null,null,null,null,null,null,null,null,0,"."]
[null,null,null,null,null,null,null,null,null,null,null,null,null,null,null,null,null,null,null,null,null,null,null,null,null,null,null,null,null,null,null,null,null,null,null,null,null,null,null,null,null,null,null,null,null,null,null,null,null,null,null,null,null,null,null,null,null,null,null,null,null,null,null,null,null,null,null,null,null,null,null,null,null,null,0,"."]
[null,null,null,null,null,null,null,null,null,null,null,null,null,null,null,null,null,null,null,null,null,null,null,null,null,null,null,null,null,null,null,null,null,null,null,null,null,null,null,null,null,null,null,null,null,null,null,null,null,null,null,null,null,null,null,null,null,null,null,null,null,null,null,null,null,null,null,null,null,null,null,null,null,null,0,"."]
[null,null,null,null,null,null,null,null,null,null,null,null,null,null,null,null,null,null,null,null,null,null,null,null,null,null,null,null,null,null,null,null,null,null,null,null,null,null,null,null,null,null,null,null,null,null,null,null,null,null,null,null,null,null,null,null,null,null,null,null,null,null,null,null,null,null,null,null,null,null,null,null,null,null,0,"."]
[null,null,null,null,null,null,null,null,null,null,null,null,null,null,null,null,null,null,null,null,null,null,null,null,null,null,null,null,null,null,null,null,null,null,null,null,null,null,null,null,null,null,null,null,null,null,null,null,null,null,null,null,null,null,null,null,null,null,null,null,null,null,null,null,null,null,null,null,null,null,null,null,null,null,0,".",null,null,null,null,null,null,null,null,null,null,null,null,null,null,null,null,null,null,null,null,null,{"$f":"SUM($BY$36)","v":11},{"$f":"VLOOKUP(CT106,'Ark3'!F1:G30,2,FALSE)","v":"Ark3!E11"}]
[null,null,null,null,null,null,null,null,null,null,null,null,null,null,null,null,null,null,null,null,null,null,null,null,null,null,null,null,null,null,null,null,null,null,null,null,null,null,null,null,null,null,null,null,null,null,null,null,null,null,null,null,null,null,null,null,null,null,null,null,null,null,null,null,null,null,null,null,null,null,null,null,null,null,0,"."]
[null,null,null,null,null,null,null,null,null,null,null,null,null,null,null,null,null,null,null,null,null,null,null,null,null,null,null,null,null,null,null,null,null,null,null,null,null,null,null,null,null,null,null,null,null,null,null,null,null,null,null,null,null,null,null,null,null,null,null,null,null,null,null,null,null,null,null,null,null,null,null,null,null,null,0,"."]
[null,null,null,null,null,null,null,null,null,null,null,null,null,null,null,null,null,null,null,null,null,null,null,null,null,null,null,null,null,null,null,null,null,null,null,null,null,null,null,null,null,null,null,null,null,null,null,null,null,null,null,null,null,null,null,null,null,null,null,null,null,null,null,null,null,null,null,null,null,null,null,null,null,null,0,".",null,null,null,null,null,null,null,null,null,null,null,null,null,null,null,null,null,null,null,null,null,{"$f":"SUM(CD48)","v":4},{"$f":"VLOOKUP(CT109,'Ark3'!B1:C34,2,FALSE)","v":"Ark3!A4"}]
[null,null,null,null,null,null,null,null,null,null,null,null,null,null,null,null,null,null,null,null,null,null,null,null,null,null,null,null,null,null,null,null,null,null,null,null,null,null,null,null,null,null,null,null,null,null,null,null,null,null,null,null,null,null,null,null,null,null,null,null,null,null,null,null,null,null,null,null,null,null,null,null,null,null,0,"."]
[null,null,null,null,null,null,null,null,null,null,null,null,null,null,null,null,null,null,null,null,null,null,null,null,null,null,null,null,null,null,null,null,null,null,null,null,null,null,null,null,null,null,null,null,null,null,null,null,null,null,null,null,null,null,null,null,null,null,null,null,null,null,null,null,null,null,null,null,null,null,null,null,null,null,0,null,null,null,null,null,null,null,null,null,null,null,null,null,null,null,null,null,null,null,null,null,null,{"$f":"SUM(CD48)","v":4},{"$f":"VLOOKUP(CT111,'Ark2'!B1:C34,2,FALSE)","v":"Ark2!A4"}]
[null,null,null,null,null,null,null,null,null,null,null,null,null,null,null,null,null,null,null,null,null,null,null,null,null,null,null,null,null,null,null,null,null,null,null,null,null,null,null,null,null,null,null,null,null,null,null,null,null,null,null,null,null,null,null,null,null,null,null,null,null,null,null,null,null,null,null,null,null,null,null,null,null,null,0]
[null,null,null,null,null,null,null,null,null,null,null,null,null,null,null,null,null,null,null,null,null,null,null,null,null,null,null,null,null,null,null,null,null,null,null,null,null,null,null,null,null,null,null,null,null,null,null,null,null,null,null,null,null,null,null,null,null,null,null,null,null,null,null,null,null,null,null,null,null,null,null,null,null,null,0]
[null,null,null,null,null,null,null,null,null,null,null,null,null,null,null,null,null,null,null,null,null,null,null,null,null,null,null,null,null,null,null,null,null,null,null,null,null,null,null,null,null,null,null,null,null,null,null,null,null,null,null,null,null,null,null,null,null,null,null,null,null,null,null,null,null,null,null,null,null,null,null,null,null,null,0]
[null,null,null,null,null,null,null,null,null,null,null,null,null,null,null,null,null,null,null,null,null,null,null,null,null,null,null,null,null,null,null,null,null,null,null,null,null,null,null,null,null,null,null,null,null,null,null,null,null,null,null,null,null,null,null,null,null,null,null,null,null,null,null,null,null,null,null,null,null,null,null,null,null,null,0,null,null,null,null,null,null,null,null,null,null,null,null,null,null,null,null,null,null,null,null,null,null,{"$f":"SUM($BY$36)","v":11},{"$f":"VLOOKUP(CT115,'Ark3'!F1:G30,2,FALSE)","v":"Ark3!E11"}]
[null,null,null,null,null,null,null,null,null,null,null,null,null,null,null,null,null,null,null,null,null,null,null,null,null,null,null,null,null,null,null,null,null,null,null,null,null,null,null,null,null,null,null,null,null,null,null,null,null,null,null,null,null,null,null,null,null,null,null,null,null,null,null,null,null,null,null,null,null,null,null,null,null,null,0]
[null,null,null,null,null,null,null,null,null,null,null,null,null,null,null,null,null,null,null,null,null,null,null,null,null,null,null,null,null,null,null,null,null,null,null,null,null,null,null,null,null,null,null,null,null,null,null,null,null,null,null,null,null,null,null,null,null,null,null,null,null,null,null,null,null,null,null,null,null,null,null,null,null,null,0]
[null,null,null,null,null,null,null,null,null,null,null,null,null,null,null,null,null,null,null,null,null,null,null,null,null,null,null,null,null,null,null,null,null,null,null,null,null,null,null,null,null,null,null,null,null,null,null,null,null,null,null,null,null,null,null,null,null,null,null,null,null,null,null,null,null,null,null,null,null,null,null,null,null,null,0]
[null,null,null,null,null,null,null,null,null,null,null,null,null,null,null,null,null,null,null,null,null,null,null,null,null,null,null,null,null,null,null,null,null,null,null,null,null,null,null,null,null,null,null,null,null,null,null,null,null,null,null,null,null,null,null,null,null,null,null,null,null,null,null,null,null,null,null,null,null,null,null,null,null,null,0]
[null,null,null,null,null,"Lopslag for stort kendetegnbillede bruger CS106 og CT106 og CU106 sammen med BY36 , der kodes af checkboxene",null,null,null,null,null,null,null,null,null,null,null,null,null,null,null,null,null,null,null,null,null,null,null,null,null,null,null,null,null,null,null,null,null,null,null,null,null,null,null,null,null,null,null,null,null,null,null,null,null,null,null,null,null,null,null,null,null,null,null,null,null,null,null,null,null,null,null,null,0]
[null,null,null,null,null,"Lopslag for lille kendetegnbillede bruger CS115 og CT115 og CU115 sammen med BY36 , der kodes af checkboxene",null,null,null,null,null,null,null,null,null,null,null,null,null,null,null,null,null,null,null,null,null,null,null,null,null,null,null,null,null,null,null,null,null,null,null,null,null,null,null,null,null,null,null,null,null,null,null,null,null,null,null,null,null,null,null,null,null,null,null,null,null,null,null,null,null,null,null,null,0]
[null,null,null,null,null,"Lopslag for teksterne bruger CS111 og CT111 og CU111) sammen med CD48 , der er lig alternativknapperne",null,null,null,null,null,null,null,null,null,null,null,null,null,null,null,null,null,null,null,null,null,null,null,null,null,null,null,null,null,null,null,null,null,null,null,null,null,null,null,null,null,null,null,null,null,null,null,null,null,null,null,null,null,null,null,null,null,null,null,null,null,null,null,null,null,null,null,null,0]
[null,null,null,null,null,"Lopslag forbillede bruger CS109 og CT109 og CU109) sammen med CD48 , der er lig alternativknapperne",null,null,null,null,null,null,null,null,null,null,null,null,null,null,null,null,null,null,null,null,null,null,null,null,null,null,null,null,null,null,null,null,null,null,null,null,null,null,null,null,null,null,null,null,null,null,null,null,null,null,null,null,null,null,null,null,null,null,null,null,null,null,null,null,null,null,null,null,0]
[null,null,null,null,null,null,null,null,null,null,null,null,null,null,null,null,null,null,null,null,null,null,null,null,null,null,null,null,null,null,null,null,null,null,null,null,null,null,null,null,null,null,null,null,null,null,null,null,null,null,null,null,null,null,null,null,null,null,null,null,null,null,null,null,null,null,null,null,null,null,null,null,null,null,0]
[null,null,null,null,null,"flag1 er for 1. billede;flag3 er for 2. billede;flag2 er for teksterne; flag 4 er for detailbillederne",null,null,null,null,null,null,null,null,null,null,null,null,null,null,null,null,null,null,null,null,null,null,null,null,null,null,null,null,34,null,null,null,null,null,null,null,null,null,null,null,null,null,null,null,null,null,null,null,null,null,null,null,null,null,null,null,null,null,null,null,null,null,null,null,null,null,null,null,0]
[]
[null,null,null,null,null,null,null,null,null,null,null,null,null,null,null,null,null,null,null,null,null,null,null,null,null,null,null,null,null,null,null,null,null,2]
[]
[null,null,null,null,null,null,null,null,null,null,null,null,null,null,null,null,null,0,"."]
[]
[]
[]
[]
[]
[null,null,null,null,null,null,null,null,null,null,null,null,null,null,null,null,null,null,null,null,null,null,null,null,null,null,null,null,null,null," "]
[]
[null,null,null,null,null,null,null,null,null,null,null,null,null,null,null,null,null,null,null,null,null,null,null,null,null,null,null,null,null,null,null,null," "]
[]
[]
[]
[]
[]
[]
[]
[]
[]
[]
[]
[]
[]
[]
[]
[]
[]
[]
[]
[]
[]
[]
[]
[]
[null,null,null,null,null,null,null,null,null,null,null,null,null,null,null,null,null,null,null,null,null,null,null,null,null,null,null,null,null,null,null,null,null,3]
[]
[]
[]
[]
[]
[]
[]
[]
[null,null,null,null,null,null,null,null,null,null,null,null,null,null,null,null,null,null,null,null,null,null,null,null,null,null,null,null,null,null," "]
[]
[]
[]
[]
[]
[]
[]
[]
[]
[]
[]
[]
[]
[]
[]
[]
[]
[]
[]
[]
[]
[]
[]
[]
[null,null,null,null,null,null,null,null,null,null,null,null,null,null,null,null,null,null,null,null,null,null,null,null,null,null,null,null,null,null,null,null,null,4]
[]
[]
[]
[]
[]
[]
[]
[]
[]
[]
[]
[]
[]
[]
[]
[]
[]
[]
[]
[]
[]
[]
[]
[]
[]
[]
[]
[]
[]
[]
[]
[]
[]
[null,null,null,null,null,null,null,null,null,null,null,null,null,null,null,null,null,null,null,null,null,null,null,null,null,null,null,null,null,null,null,null,null,5]
[]
[]
[]
[]
[]
[]
[]
[]
[]
[]
[]
[]
[]
[]
[]
[]
[]
[]
[]
[]
[]
[]
[]
[]
[]
[]
[]
[]
[]
[]
[]
[]
[]
[null,null,null,null,null,null,null,null,null,null,null,null,null,null,null,null,null,null,null,null,null,null,null,null,null,null,null,null,null,null,null,null,null,6]
[]
[]
[]
[]
[]
[]
[]
[]
[]
[]
[]
[]
[]
[]
[]
[]
[]
[]
[]
[]
[]
[]
[]
[]
[]
[]
[]
[]
[]
[]
[]
[]
[]
[null,null,null,null,null,null,null,null,null,null,null,null,null,null,null,null,null,null,null,null,null,null,null,null,null,null,null,null,null,null,null,null,null,7]

{"sheet":"Ark2","index":1,"n_rows":34,"n_cols":4,"rows_kept":34,"cut":false,"hidden":false,"merged":[]}
[null,1,"Ark2!A1"]
[null,2,"Ark2!A2"]
[null,3,"Ark2!A3"]
[null,4,"Ark2!A4"]
[null,5,"Ark2!A5"]
[null,6,"Ark2!A6"]
[null,7,"Ark2!A7"]
[" ",8,"Ark2!A8","undersøgsorte striber ?"]
[null,9,"Ark2!A9"]
[null,10,"Ark2!A10"]
[null,11,"Ark2!A11"]
[null,12,"Ark2!A12"]
[null,13,"Ark2!A13"]
[null,14,"Ark2!A14"]
[null,15,"Ark2!A15"]
[null,16,"Ark2!A16"]
[null,17,"Ark2!A17"]
[null,18,"Ark2!A18"]
[null,19,"Ark2!A19"]
[null,20,"Ark2!A20"]
[null,21,"Ark2!A21"]
[null,22,"Ark2!A22"]
[null,23,"Ark2!A23"]
[null,24,"Ark2!A24"]
[null,25,"Ark2!A25"]
[null,26,"Ark2!A26"]
[null,27,"Ark2!A27"]
[null,28,"Ark2!A28"]
[null,29,"Ark2!A29"]
[null,30,"Ark2!A30"]
[null,31,"Ark2!A31"]
[null,32,"Ark2!A32"]
[null,33,"Ark2!A33"]
[null,34,"Ark2!A34"]

{"sheet":"Ark3","index":2,"n_rows":34,"n_cols":7,"rows_kept":34,"cut":false,"hidden":false,"merged":[]}
[null,1,"Ark3!A1",null,null,1,"Ark3!E1"]
[null,2,"Ark3!A2",null,null,2,"Ark3!E2"]
[null,3,"Ark3!A3",null,null,3,"Ark3!E3"]
[null,4,"Ark3!A4",null,null,4,"Ark3!E4"]
[null,5,"Ark3!A5",null,null,5,"Ark3!E5"]
[null,6,"Ark3!A6",null,null,6,"Ark3!E6"]
[null,7,"Ark3!A7",null,null,7,"Ark3!E7"]
[null,8,"Ark3!A8",null,null,8,"Ark3!E8"]
[null,9,"Ark3!A9",null,null,9,"Ark3!E9"]
[null,10,"Ark3!A10",null,null,10,"Ark3!E10"]
[null,11,"Ark3!A11",null,null,11,"Ark3!E11"]
[null,12,"Ark3!A12",null,null,12,"Ark3!E12"]
[null,13,"Ark3!A13",null,null,13,"Ark3!E13"]
[null,14,"Ark3!A14",null,null,14,"Ark3!E14"]
[null,15,"Ark3!A15",null,null,15,"Ark3!E15"]
[null,16,"Ark3!A16",null,null,16,"Ark3!E16"]
[null,17,"Ark3!A17",null,null,17,"Ark3!E17"]
[null,18,"Ark3!A18",null,null,18,"Ark3!E18"]
[null,19,"Ark3!A19",null,null,19,"Ark3!E19"]
[null,20,"Ark3!A20",null,null,20,"Ark3!E20"]
[null,21,"Ark3!A21",null,null,21,"Ark3!E21"]
[null,22,"Ark3!A22",null,null,22,"Ark3!E22"]
[null,23,"Ark3!A23",null,null,23,"Ark3!E23"]
[null,24,"Ark3!A24",null,null,24,"Ark3!E24"]
[null,25,"Ark3!A25",null,null,25,"Ark3!E25"]
[null,26,"Ark3!A26",null,null,26,"Ark3!E26"]
[null,27,"Ark3!A27",null,null,27,"Ark3!E27"]
[null,28,"Ark3!A28",null,null,28,"Ark3!E28"]
[null,29,"Ark3!A29",null,null,29,"Ark3!E29"]
[null,30,"Ark3!A30",null,null,30,"Ark3!E30"]
[null,31,"Ark3!A31"]
[null,32,"Ark3!A32"]
[null,33,"Ark3!A33"]
[null,34,"Ark3!A34"]